[Event "LV Capablanca Memorial Elite 2022"]
[Site "La Habana"]
[Date "2022.04.22"]
[Round "4.1"]
[White "Yilmaz, Mustafa"]
[Black "Ortiz Suarez, Isan Reynaldo"]
[Result "1-0"]
[ECO "D36"]
[WhiteElo "2627"]
[BlackElo "2531"]
[Annotator "TA"]
[PlyCount "115"]
[EventDate "2022.04.20"]
[EventType "tourn"]
[EventCountry "CUB"]
[SourceTitle "playchess.com"]
[Source "ChessBase"]
[SourceQuality "1"]
[TimeControl "40/5400+30:1800+30"]

{[%evp 22,115,17,11,16,10,3,14,8,0,0,0,12,12,14,7,31,26,46,42,38,14,76,0,9,-27,-26,-85,-85,-113,-33,-71,-26,-12,0,0,22,0,10,0,0,0,20,10,14,15,37,0,0,0,0,6,114,118,106,108,93,82,112,108,237,241,231,223,233,204,213,198,277,264,544,524,511,518,704,704,704,704,689,688,659,644,566,550,547,547,500,388,384,385,767,377,347,347,487,485]} 1. d4 {[%emt 0:00:03]} d5 {[%emt 0:02:09]} 2. c4 {[%emt 0:00:06]} c6 {[%emt 0:00:04]} 3. Nf3 {[%emt 0:00:05]} Nf6 {[%emt 0:00:06]} 4. Nc3 {[%emt 0:00:03]} e6 {[%emt 0:00:13]} 5. Bg5 {[%emt 0:00:04]} Nbd7 {[%emt 0:01:09]} 6. cxd5 {[%emt 0:01:42]} exd5 {[%emt 0:00:40]} 7. Qc2 {[%emt 0:00:06]} Be7 {[%emt 0:01:45]} 8. e3 {[%emt 0:00:04]} Nh5 {[%emt 0:00:57]} 9. Bxe7 {[%emt 0:00:18]} Qxe7 {[%emt 0:00:05]} 10. O-O-O {[%emt 0:00:06]} g6 {[%emt 0:02:00]} 11. Bd3 {[%emt 0:03:19]} Nb6 {[%emt 0:08:42]} 12. h3 {[%emt 0:00:13]} Be6 {[%emt 0:00:26] D36: Queen's Gambit Declined: Exchange Variation: Main line (5 Bg5 c6 6 Qc2).} 13. Kb1 {[%emt 0:00:32]} Ng7 {[%emt 0:03:29]} 14. g4 {[%emt 0:02:07]} O-O-O {[%emt 0:01:12] The position is equal.} 15. Rc1 {[%emt 0:03:14]} Kb8 {[%emt 0:00:29]} 16. a4 $5 {[%emt 0:02:09][%mdl 4] A promising side line.} Qb4 {[%emt 0:08:24]} 17. Be2 {[%emt 0:07:51] [#]} f6 $146 {[%emt 0:05:45]} ({Predecessor:} 17... Rhe8 18. Ne5 Nc4 19. Nxc4 dxc4 20. Na2 Qe7 21. Bxc4 f5 22. Bxe6 Qxe6 23. Nb4 Re7 {½-½ (35) Toman,J (2061)-Hiermann,D (2250) Ceske Budejovice 2020}) 18. Ne1 {[%emt 0:03:07]} Bf7 {[%emt 0:15:20]} 19. Nd3 {[%emt 0:01:54]} Qe7 {[%emt 0:00:14]} 20. a5 {[%emt 0:21:00]} Nc4 {[%emt 0:00:30]} 21. a6 {[%emt 0:02:34]} Ne6 {[%emt 0:07:15]} (21... b6 $1 $11 {remains equal.}) 22. Ka1 {[%emt 0:09:19]} (22. Qa4 $16) 22... b6 $11 {[%emt 0:05:40]} 23. Na2 {[%emt 0:02:41]} Rc8 {[%emt 0:01:59]} 24. Ndb4 {[%emt 0:03:07]} (24. Nc3 $11 {keeps the balance.}) 24... Na5 $1 $17 {[%emt 0:00:59] White must now prevent ...c5.} 25. Qa4 {[%emt 0:08:40][%cal Rb4c6] [#]} Qd6 {[%emt 0:02:43]} (25... Nxd4 $6 26. exd4 Qxe2 27. Nxc6+ Rxc6 28. Rxc6 $11) ({Black should play} 25... c5 $1 $17 {[%cal Rc5b4]} 26. Nxd5 Qd6) 26. Nd3 {[%emt 0:02:52]} Rc7 {[%emt 0:06:56]} 27. Kb1 {[%emt 0:02:48]} Rhc8 {[%emt 0:00:39]} 28. h4 {[%emt 0:02:18]} Ka8 {[%emt 0:03:29]} 29. Qb4 {[%emt 0:03:05]} Qd8 {[%emt 0:00:31]} 30. Bf3 {[%emt 0:01:16]} g5 {[%emt 0:01:16]} 31. h5 {[%emt 0:02:59] Prevents Bg6.} Rd7 {[%emt 0:00:47]} 32. Rhd1 {[%emt 0:03:43]} Rd6 {[%emt 0:02:33]} 33. Qa4 {[%emt 0:03:13]} Be8 {[%emt 0:01:40][%cal Bf7e8,Be8d7,Bd7c8][%mdl 32]} 34. Qc2 {[%emt 0:02:35]} Kb8 {[%emt 0:03:56]} 35. Ndb4 {[%emt 0:00:50]} Rc7 {[%emt 0:00:08]} 36. Nc3 {[%emt 0:00:28][%cal Ba2c3,Bc3e2,Be2g3,Bg3f5][%mdl 32]} Re7 {[%emt 0:04:35] [#]} (36... h6 $11) 37. Ne2 $1 $16 {[%emt 0:01:39]} Nc7 {[%emt 0:04:18]} 38. Ng3 {[%emt 0:00:21]} Bd7 {[%emt 0:00:06]} 39. e4 $36 {[%emt 0:01:58][%mdl 2048] White is really pushing. &Bianco is more active.} Bc8 {[%emt 0:03:37]} 40. exd5 {[%emt 0:00:00]} Nxd5 {[%emt 0:00:00] A mistake that costs the game.} (40... cxd5 $16 {was necessary.} 41. Nf5 Bxf5 42. Qxf5 Qd7) 41. Bxd5 $18 {[%emt 0:09:29]} cxd5 {[%emt 0:00:39]} 42. Nf5 {[%emt 0:02:44]} Rc7 {[%emt 0:00:44]} 43. Qd3 {[%emt 0:01:38]} ({Weaker is} 43. Qxc7+ Qxc7 44. Rxc7 Bxf5+ 45. Rc2 (45. gxf5 Kxc7 46. Re1 Kd8 $11) 45... Bxc2+ 46. Kxc2 Nc6 $11) 43... Bxf5 {[%emt 0:04:08]} 44. Qxf5 {[%emt 0:01:10]} Qc8 {[%emt 0:00:53]} (44... Qd7 $142) 45. Qd3 {[%emt 0:03:30]} Qxg4 $2 {[%emt 0:13:41]} (45... Qd7 46. Qg3 Nc4) 46. Rxc7 {[%emt 0:00:43]} Kxc7 {[%emt 0:00:03]} 47. Rc1+ {[%emt 0:07:27]} Kd8 {[%emt 0:00:20] Hoping for ...Qe4.} 48. Qxh7 {[%emt 0:00:29]} Qe4+ {[%emt 0:00:33]} 49. Qxe4 {[%emt 0:00:02]} dxe4 {[%emt 0:00:08][%mdl 4096] Endgame KRN-KRN} 50. h6 {[%emt 0:00:43] Threatening mate with h7.} Rd7 {[%emt 0:00:03] [#]} 51. Nd5 $1 {[%emt 0:04:06][%mdl 512]} Rh7 {[%emt 0:00:37] [#]} 52. Rc7 $1 {[%emt 0:00:58][%mdl 512]} Rxh6 {[%emt 0:00:55]} 53. Rxa7 {[%emt 0:00:03]} Nc6 {[%emt 0:02:15]} 54. Rf7 {[%emt 0:01:01]} Rh1+ {[%emt 0:00:40]} 55. Ka2 {[%emt 0:01:05]} Rd1 $2 {[%emt 0:01:28]} (55... b5 56. Rxf6 Kd7) 56. a7 {[%emt 0:00:56]} (56. Rxf6 $142 Rxd4 57. Rd6+ Kc8 58. Rxc6+ Kd7 59. Rc3 Rxd5 60. a7 Ra5+ 61. Ra3 Rxa7 62. Rxa7+ Kc6 63. Rg7) 56... Nxa7 {[%emt 0:00:12]} 57. Rxa7 {[%emt 0:00:03]} Rxd4 {[%emt 0:00:07]} (57... f5 $142 58. Rf7 f4) 58. Nxf6 {[%emt 0:00:18] Weighted Error Value: White=0.20 (precise) /Black=0.29 (precise)} 1-0

[Event "LV Capablanca Memorial Elite 2022"]
[Site "La Habana"]
[Date "2022.04.22"]
[Round "4.2"]
[White "Mareco, Sandro"]
[Black "Quesada Perez, Luis Ernesto"]
[Result "0-1"]
[ECO "A61"]
[WhiteElo "2643"]
[BlackElo "2517"]
[Annotator "TA"]
[PlyCount "64"]
[EventDate "2022.04.20"]
[EventType "tourn"]
[EventCountry "CUB"]
[SourceTitle "playchess.com"]
[Source "ChessBase"]
[SourceQuality "1"]
[TimeControl "40/5400+30:1800+30"]

{[%evp 18,64,44,28,67,42,81,80,92,90,88,91,89,84,125,121,126,124,132,90,188,181,212,206,335,370,337,362,337,336,361,347,339,289,285,-122,-101,-287,-280,-388,-418,-413,-391,-346,-197,-1099,-1037,-29990,-604]} 1. d4 {[%emt 0:00:03]} Nf6 {[%emt 0:07:11]} 2. c4 {[%emt 0:00:05]} e6 {[%emt 0:00:15]} 3. Nf3 {[%emt 0:00:04]} c5 {[%emt 0:00:14]} 4. d5 {[%emt 0:00:15]} exd5 {[%emt 0:00:06]} 5. cxd5 {[%emt 0:00:04]} d6 {[%emt 0:00:05]} 6. Nc3 {[%emt 0:00:09]} g6 {[%emt 0:00:05]} 7. Bf4 {[%emt 0:01:00]} a6 {[%emt 0:00:35]} 8. a4 {[%emt 0:00:14]} Bg7 {[%emt 0:00:12]} 9. h3 {[%emt 0:00:05]} O-O {[%emt 0:00:04]} 10. e3 {[%emt 0:00:03]} Re8 {[%emt 0:00:04] A61: Modern Benoni: Nf3 without early e4.} 11. Bd3 {[%emt 0:05:18] Inhibits Ne4.} Nh5 {[%emt 0:08:35]} 12. Bh2 {[%emt 0:01:12]} Nd7 {[%emt 0:00:06] White is better.} 13. Be2 {[%emt 0:03:27]} ({Stronger than} 13. Bxd6 Qb6 14. g4 Qxb2 $1 $17) 13... Qc7 {[%emt 0:02:39]} 14. Nd2 {[%emt 0:03:59][%cal Bf3d2,Bd2c4,Bc4b6][%mdl 32]} Nhf6 {[%emt 0:00:02] [#]} 15. O-O $146 {[%emt 0:16:21]} ({Predecessor:} 15. Nc4 Ne5 16. Nxe5 dxe5 17. O-O Bf5 18. Bc4 Rad8 19. Re1 Qb6 20. e4 Bd7 21. a5 {½-½ (52) Hinrichs,P (1910)-Oberhofer,M (1713) Willingen 2017}) 15... Nb6 {[%emt 0:06:07]} 16. e4 {[%emt 0:02:46]} Bd7 {[%emt 0:04:19]} 17. a5 {[%emt 0:15:40]} Nc8 {[%emt 0:00:07]} 18. f4 {[%emt 0:06:46] aiming for e5.} Ne7 {[%emt 0:07:19]} (18... b5 $16) 19. Nc4 $18 {[%emt 0:15:25] And now e5 would win.} Bb5 {[%emt 0:00:14]} 20. Nb6 $1 {[%emt 0:01:47]} Rad8 {[%emt 0:00:01]} (20... Bxe2 $142 21. Nxa8 (21. Qxe2 Rad8 $14) 21... Rxa8 22. Qxe2 Nd7) 21. Bxb5 {[%emt 0:00:14]} ({Weaker is} 21. Nxb5 axb5 22. e5 (22. Bxb5 Nxe4 23. Bxe8 Rxe8 $11) 22... c4 $16) 21... axb5 {[%emt 0:00:02]} 22. Nxb5 {[%emt 0:00:44]} Qb8 {[%emt 0:00:33]} 23. Qf3 {[%emt 0:02:47]} Nxe4 {[%emt 0:00:36]} 24. Qxe4 {[%emt 0:00:19]} Nf5 {[%emt 0:00:48]} 25. Qf3 {[%emt 0:03:15]} Re3 {[%emt 0:00:14]} 26. Qf2 {[%emt 0:00:18]} ({White must play} 26. Qd1 $1 $18) 26... Rb3 $1 $17 {[%emt 0:00:06][%csl LRb2,LRb5][%mdl 1024] Black has strong compensation.} 27. Qe2 {[%emt 0:01:02] White does not recover from this.} (27. Nc4 $17 {might work better.}) 27... Re8 $19 {[%emt 0:00:14]} 28. Qc4 {[%emt 0:00:05]} Rb4 {[%emt 0:00:04]} 29. Qd3 {[%emt 0:02:18]} Re3 $1 {[%emt 0:00:17][%mdl 64] Deflection} 30. Qd1 {[%emt 0:00:28]} Rxb5 {[%emt 0:00:19]} (30... Qe8 $142 31. Nxd6 (31. Nc7 $2 Qe4 $19) 31... Nxd6) 31. g4 $2 {[%emt 0:00:16] [#]} (31. Nc4) 31... Bd4 $1 {[%emt 0:00:23]} 32. Kh1 {[%emt 0:00:21] [#]} (32. gxf5 Rxb2) 32... Rxh3 {[%emt 0:03:27] Weighted Error Value: White=0.98/Black=0.25 (precise)} 0-1

[Event "LV Capablanca Memorial Elite 2022"]
[Site "La Habana"]
[Date "2022.04.22"]
[Round "4.3"]
[White "Durarbayli, Vasif"]
[Black "Niemann, Hans Moke"]
[Result "1/2-1/2"]
[ECO "C65"]
[WhiteElo "2615"]
[BlackElo "2642"]
[Annotator "TA"]
[PlyCount "54"]
[EventDate "2022.04.20"]
[EventType "tourn"]
[EventCountry "CUB"]
[SourceTitle "playchess.com"]
[Source "ChessBase"]
[SourceQuality "1"]
[TimeControl "40/5400+30:1800+30"]

{[%evp 9,54,25,23,7,21,19,26,8,0,0,0,-6,-3,-12,0,0,0,-10,0,0,0,0,0,0,0,0,0,0,0,0,0,0,0,0,0,-18,0,0,13,0,0,0,0,0,0,0,0]} 1. e4 {[%emt 0:00:02]} e5 {[%emt 0:02:32]} 2. Nf3 {[%emt 0:00:11]} Nc6 {[%emt 0:00:30]} 3. Bb5 {[%emt 0:00:07]} Nf6 {[%emt 0:01:13]} 4. d3 {[%emt 0:00:05]} Bc5 {[%emt 0:01:08]} 5. Bxc6 {[%emt 0:00:08]} dxc6 {[%emt 0:00:20]} 6. Nbd2 {[%emt 0:00:04] C65: Ruy Lopez: Berlin Defence (3...Nf6), unusual lines and 4 0-0 Bc5.} Be6 {[%emt 0:02:19]} 7. O-O {[%emt 0:00:13]} Qd6 {[%emt 0:01:24]} 8. Nb3 {[%emt 0:07:59] White has an edge.} Bb6 {[%emt 0:03:37] [#] The position is equal.} 9. Qe1 $146 {[%emt 0:00:47]} ({Predecessor:} 9. Be3 Bxe3 10. fxe3 c5 11. Nbd2 O-O 12. a4 Ne8 13. Ng5 f6 14. Nxe6 Qxe6 15. Qh5 {½-½ (91) Wang,H (2756)-Navara,D (2707) Jerusalem 2019}) 9... a5 {[%emt 0:04:27][%cal Ba7a5,Ba5a4][%mdl 32]} 10. Be3 {[%emt 0:12:54]} a4 {[%emt 0:07:17]} 11. Nbd2 {[%emt 0:00:05]} Nd7 {[%emt 0:12:33]} 12. Ng5 {[%emt 0:01:57]} O-O {[%emt 0:03:44]} 13. a3 {[%emt 0:06:12]} Rfe8 {[%emt 0:04:25]} 14. Nxe6 {[%emt 0:05:44]} Qxe6 {[%emt 0:00:13]} 15. Nc4 {[%emt 0:00:06]} Bd4 {[%emt 0:00:28]} 16. f4 {[%emt 0:05:07]} b5 {[%emt 0:06:40]} 17. Bxd4 {[%emt 0:00:54]} exd4 {[%emt 0:04:25]} 18. Nd2 {[%emt 0:01:25]} f5 {[%emt 0:02:09]} 19. Qf2 {[%emt 0:04:47]} c5 {[%emt 0:00:43]} 20. h3 {[%emt 0:02:59]} Nf6 {[%emt 0:01:11][%cal Rf5e4]} 21. Rfe1 {[%emt 0:02:15]} Rad8 {[%emt 0:02:25]} 22. Kh2 {[%emt 0:07:08]} h6 {[%emt 0:10:02][%cal Rf5e4]} 23. Re2 {[%emt 0:11:17]} Re7 {[%emt 0:04:12]} 24. b3 {[%emt 0:06:07]} Rde8 {[%emt 0:06:00]} 25. bxa4 {[%emt 0:00:25]} bxa4 {[%emt 0:00:06]} 26. Ree1 {[%emt 0:00:52]} fxe4 {[%emt 0:07:54]} 27. Nxe4 {[%emt 0:01:21]} Nxe4 {[%emt 0:01:23] A rather calm draw.  Weighted Error Value: White=0.04 (flawless) /Black=0.04 (flawless)} 1/2-1/2

[Event "LV Capablanca Memorial Elite 2022"]
[Site "La Habana"]
[Date "2022.04.22"]
[Round "4.4"]
[White "Ganguly, Surya Shekhar"]
[Black "Almeida Quintana, Omar"]
[Result "1-0"]
[ECO "B06"]
[WhiteElo "2627"]
[BlackElo "2535"]
[Annotator "TA"]
[PlyCount "39"]
[EventDate "2022.04.20"]
[EventType "tourn"]
[EventCountry "CUB"]
[SourceTitle "playchess.com"]
[Source "ChessBase"]
[SourceQuality "1"]
[TimeControl "40/5400+30:1800+30"]

{[%evp 9,39,43,38,31,34,28,42,29,56,50,63,48,47,38,48,56,530,523,568,560,533,564,569,566,582,579,565,570,558,558,516,499]} 1. e4 {[%emt 0:00:04]} g6 {[%emt 0:05:57]} 2. d4 {[%emt 0:00:11]} Bg7 {[%emt 0:00:49]} 3. Nc3 {[%emt 0:00:08]} d6 {[%emt 0:00:09]} 4. Be3 {[%emt 0:00:32]} a6 {[%emt 0:00:38]} 5. h4 {[%emt 0:00:27]} h5 {[%emt 0:02:08]} 6. Nh3 {[%emt 0:00:10] B06: Modern Defence.} Bxh3 {[%emt 0:00:13]} 7. Rxh3 {[%emt 0:00:07]} Nd7 {[%emt 0:02:18] [#]} 8. Qe2 $146 {[%emt 0:00:28] White is slightly better.} ({Predecessor:} 8. Qd2 Ngf6 9. O-O-O c6 10. Kb1 Qa5 11. Bd3 O-O-O 12. Rg3 Ng4 13. Bg5 Bxd4 14. Bxe7 {0-1 (78) Plazuelo Pascual,J (2458)-Sunilduth Lyna,N (2662) Chess.com INT 2022}) 8... c6 {[%emt 0:03:38]} 9. O-O-O {[%emt 0:00:13]} Qc7 {[%emt 0:00:24]} 10. Bg5 {[%emt 0:05:13] &Bianco is more active.} Ngf6 {[%emt 0:15:17]} 11. f4 {[%emt 0:03:12]} Nh7 {[%emt 0:07:46]} 12. e5 {[%emt 0:00:55][%cal Og5e7] Threatens to win with Bxe7!} Nb6 $2 {[%emt 0:03:57][%mdl 8192] This move loses the game for Black.} (12... Nxg5 $14 13. hxg5 dxe5) 13. exd6 $18 {[%emt 0:02:48] White is clearly winning.} Qxd6 {[%emt 0:01:29] [#]} 14. Bxe7 {[%emt 0:00:20][%mdl 512]} Qxe7 {[%emt 0:06:59]} 15. Re3 {[%emt 0:00:06]} Qxe3+ {[%emt 0:00:03]} 16. Qxe3+ {[%emt 0:00:06]} Kf8 {[%emt 0:00:03]} 17. d5 {[%emt 0:04:44]} Nxd5 {[%emt 0:00:11]} 18. Nxd5 {[%emt 0:00:15]} cxd5 {[%emt 0:00:04]} 19. Qc5+ {[%emt 0:00:12]} Kg8 {[%emt 0:00:08]} 20. Qxd5 {[%emt 0:00:04] Weighted Error Value: White=0.02 (flawless) /Black=0.49} 1-0

[Event "LV Capablanca Memorial Elite 2022"]
[Site "La Habana"]
[Date "2022.04.22"]
[Round "4.5"]
[White "Quesada Perez, Yasser"]
[Black "Albornoz Cabrera, Carlos Daniel"]
[Result "0-1"]
[ECO "B52"]
[WhiteElo "2568"]
[BlackElo "2567"]
[Annotator "TA"]
[PlyCount "170"]
[EventDate "2022.04.20"]
[EventType "tourn"]
[EventCountry "CUB"]
[SourceTitle "playchess.com"]
[Source "ChessBase"]
[SourceQuality "1"]
[TimeControl "40/5400+30:1800+30"]

{[%evp 32,170,6,4,9,13,8,0,11,-21,-31,-23,-15,-47,-47,-123,-115,-127,-125,-120,-124,-120,-120,-118,-108,-121,-120,-125,-127,-152,-152,-152,-160,-159,-138,-104,-115,-122,-91,-81,-95,-95,-95,-88,-81,-81,-72,-74,-74,-71,-69,-134,-142,-141,-132,-117,-75,-145,-138,-154,-147,-170,-170,-212,-164,-164,-137,-243,-91,-229,-218,-350,-253,-258,-250,-259,-250,-248,-244,-229,-204,-204,-202,-182,-140,-183,-114,-199,-104,-185,-8,-8,-8,-8,-8,-8,-8,-73,-6,-8,0,-8,-8,-8,-8,-6344,-5089,-29960,-29961,-29964,-29965,-29964,-29965,-29968,-29965,-29967,-29968,-29967,-29969,-29968,-29969,-29970,-29971,-29972,-29973,-29973,-29973,-29973,-29974,-29975,-29976,-29975,-29977,-29977,-29978,-29978,-29979,-29980,-29981,-29982,-29983]} 1. e4 {[%emt 0:00:10]} c5 {[%emt 0:00:08]} 2. Nf3 {[%emt 0:00:15]} d6 {[%emt 0:00:05]} 3. Bb5+ {[%emt 0:00:16]} Bd7 {[%emt 0:00:10]} 4. Bxd7+ {[%emt 0:00:12]} Qxd7 {[%emt 0:00:05]} 5. O-O {[%emt 0:00:28]} Nc6 {[%emt 0:00:05]} 6. c3 {[%emt 0:00:21]} d5 {[%emt 0:00:12]} 7. exd5 {[%emt 0:01:48]} Qxd5 {[%emt 0:00:05]} 8. d4 {[%emt 0:00:44]} e6 {[%emt 0:01:04]} 9. Be3 {[%emt 0:07:12]} cxd4 {[%emt 0:00:06]} 10. cxd4 {[%emt 0:02:02]} Nf6 {[%emt 0:19:51]} 11. Nc3 {[%emt 0:00:07]} Qa5 {[%emt 0:03:14]} 12. a3 {[%emt 0:14:07]} Nd5 {[%emt 0:09:50]} 13. Qb3 {[%emt 0:06:38]} Qb6 {[%emt 0:01:13]} 14. Qc4 {[%emt 0:00:10]} Rd8 {[%emt 0:02:36]} 15. b4 {[%emt 0:11:05]} Be7 {[%emt 0:06:37]} 16. Rac1 {[%emt 0:12:57]} a6 {[%emt 0:16:50]} 17. Nxd5 {[%emt 0:00:19]} exd5 {[%emt 0:00:26]} 18. Qd3 {[%emt 0:00:05]} O-O {[%emt 0:00:36]} 19. Ne5 {[%emt 0:01:35]} a5 {[%emt 0:07:57]} 20. b5 {[%emt 0:02:53]} Nxe5 {[%emt 0:00:44]} 21. dxe5 {[%emt 0:00:07]} d4 {[%emt 0:00:05]} 22. Bf4 {[%emt 0:01:13]} a4 $1 {[%emt 0:04:08]} 23. Rc2 {[%emt 0:06:44]} (23. e6 $15 Qxe6 24. Rfe1) 23... Rd5 $1 $17 {[%emt 0:02:09]} 24. Rb1 {[%emt 0:08:44]} Qg6 {[%emt 0:00:51]} 25. Rd1 {[%emt 0:07:56]} Bxa3 {[%emt 0:09:28]} 26. Ra2 {[%emt 0:00:07]} Qxd3 {[%emt 0:00:09]} 27. Rxd3 {[%emt 0:00:03]} Rxb5 {[%emt 0:00:13]} 28. g3 {[%emt 0:00:30]} Bb2 {[%emt 0:00:50]} 29. Rxa4 {[%emt 0:00:05]} Bc3 {[%emt 0:00:26]} 30. Rc4 {[%emt 0:00:25]} Rb1+ {[%emt 0:01:38]} 31. Kg2 {[%emt 0:00:08]} b5 {[%emt 0:05:36]} 32. Rc7 {[%emt 0:00:05]} Re1 {[%emt 0:01:55]} 33. Rb7 {[%emt 0:01:50]} b4 {[%emt 0:00:06]} 34. Bg5 {[%emt 0:02:25]} Rxe5 {[%emt 0:02:55]} 35. Be7 {[%emt 0:00:04]} Rxe7 {[%emt 0:02:06]} 36. Rxe7 {[%emt 0:00:05]} Rb8 {[%emt 0:00:55]} 37. Rd1 {[%emt 0:00:37]} b3 {[%emt 0:00:14]} 38. Rb1 {[%emt 0:02:12]} b2 {[%emt 0:00:04]} 39. Kf3 {[%emt 0:02:08]} Kf8 {[%emt 0:00:16]} 40. Rc7 {[%emt 0:00:00]} Rb6 {[%emt 0:00:00]} 41. h4 {[%emt 0:10:56]} (41. Ke2 $15) 41... g6 $17 {[%emt 0:02:27]} 42. Ke2 {[%emt 0:03:16]} Kg7 {[%emt 0:00:59]} 43. Kd3 {[%emt 0:04:32]} Kf6 {[%emt 0:00:08]} 44. Rc5 {[%emt 0:04:31]} (44. g4 $142) 44... Ke6 {[%emt 0:02:46]} 45. Rc7 {[%emt 0:01:21]} h5 $1 {[%emt 0:01:12]} 46. Rc5 {[%emt 0:04:29]} f6 {[%emt 0:05:49]} 47. Kc4 {[%emt 0:04:00]} Rb4+ {[%emt 0:02:07]} 48. Kd3 {[%emt 0:00:01]} Kd6 {[%emt 0:01:55]} 49. Rc8 {[%emt 0:00:39]} (49. Ra5 $17 {was called for.}) 49... Rb5 $2 {[%emt 0:01:27]} (49... Ra4 $19 {has better winning chances.} 50. Kc2 Ra1 51. Rd8+ Ke5) 50. Rg8 {[%emt 0:00:44]} (50. Ra8 $17) 50... Ke6 $19 {[%emt 0:01:06]} 51. Ke4 {[%emt 0:02:04]} ({But not} 51. Rxg6 $2 Kf7 52. Rh6 Kg7 53. Rxh5 Rxh5 $19) (51. Ra8 $142) 51... Re5+ {[%emt 0:03:46]} 52. Kd3 {[%emt 0:02:28]} Rf5 {[%emt 0:02:17]} 53. Re8+ {[%emt 0:01:26]} Kd6 {[%emt 0:02:41]} 54. Re2 {[%emt 0:01:07]} Rb5 {[%emt 0:00:49]} 55. Kc4 {[%emt 0:01:31]} Rb4+ {[%emt 0:00:22]} 56. Kd3 {[%emt 0:00:00]} Kd5 {[%emt 0:00:40]} 57. Re8 {[%emt 0:00:16]} Rb5 {[%emt 0:03:15]} 58. Rc8 {[%emt 0:00:52]} Ke5 {[%emt 0:02:24]} (58... Ra5 $1 $19 {[%cal Ra5a1] And now ...Ra1 would win.} 59. Rd8+ Ke5) 59. Rc6 {[%emt 0:00:04]} (59. Ra8 $17) 59... Kf5 {[%emt 0:00:39]} (59... Ra5 $1 $19 {[%cal Ra5a1] Threatens to win with ...Ra1.} 60. Rb6 Ra1 61. R1xb2 Bxb2 62. Rb5+ Kd6 63. Rxb2 Kc5) 60. f3 {[%emt 0:00:04]} (60. Ra6 $17 {only move.}) 60... Re5 $2 {[%emt 0:02:23]} (60... Ra5 $1 $19 {[%cal Ra5a1] Hoping for ...Ra1.} 61. Kc2 Ke5) 61. g4+ $1 $11 {[%emt 0:00:13]} hxg4 {[%emt 0:00:10]} 62. fxg4+ {[%emt 0:00:03]} Kxg4 {[%emt 0:00:05]} 63. Rxf6 {[%emt 0:00:03]} Kh5 {[%emt 0:00:28]} 64. Rg1 {[%emt 0:06:21] [#]} (64. Rb6 $11) 64... Rb5 {[%emt 0:01:37]} (64... Re3+ $1 $17 65. Kc2 Re2+ 66. Kb1 d3) 65. Kc2 {[%emt 0:00:35]} Bd2 {[%emt 0:04:10]} 66. Kxd2 {[%emt 0:01:12]} b1=Q {[%emt 0:00:05]} 67. Rxb1 {[%emt 0:00:03]} Rxb1 {[%emt 0:00:03]} 68. Kd3 $2 {[%emt 0:00:16][%mdl 8192]} (68. Rd6 $11) 68... Rg1 $19 {[%emt 0:01:40]} 69. Kxd4 {[%emt 0:00:09] [#]} Rg3 $1 {[%emt 0:00:13]} 70. Rf8 {[%emt 0:02:34]} Kxh4 {[%emt 0:00:05]} 71. Ke4 {[%emt 0:00:21]} g5 {[%emt 0:00:11]} 72. Rg8 {[%emt 0:00:44]} Kg4 {[%emt 0:00:06]} 73. Rg7 {[%emt 0:00:22]} Ra3 {[%emt 0:00:20]} 74. Rg8 {[%emt 0:00:09]} Kh4 {[%emt 0:00:28]} 75. Kf5 {[%emt 0:01:04]} Rf3+ {[%emt 0:00:09]} 76. Ke4 {[%emt 0:00:04]} g4 {[%emt 0:00:11]} 77. Rg7 {[%emt 0:00:21]} Kh3 {[%emt 0:00:23]} 78. Rg8 {[%emt 0:00:15]} Rf2 {[%emt 0:00:45]} 79. Ke3 {[%emt 0:00:19]} g3 {[%emt 0:00:11]} 80. Rg7 {[%emt 0:00:09]} Kh2 {[%emt 0:00:23]} 81. Rg8 {[%emt 0:00:03]} Rf7 {[%emt 0:00:12]} 82. Ke2 {[%emt 0:00:19]} g2 {[%emt 0:00:27]} 83. Rh8+ {[%emt 0:00:05]} Kg1 {[%emt 0:00:02]} 84. Ra8 {[%emt 0:00:59]} Rh7 {[%emt 0:00:26]} 85. Kf3 {[%emt 0:01:04]} Kh1 {[%emt 0:00:35]} 0-1